Cogmind - Beta 14 @@@ ROGUE MODE // 2024.12.30 @ 18:51:02 Player: Fazzonamite Result: Destroyed by H-88 Terminator with Heavy Machine Gun Performance ------------- Evolutions (9) 4500 Regions Visited (18) 3600 Robots Destroyed (53) 265 Value Destroyed (1527) 1527 Prototype IDs (35) 700 Alien Tech Used (8) 1600 Bonus (5337) 5337 TOTAL SCORE: 17529 Bonus ------- Follower Combat Kills 37 Met Zhirov 300 Used Core Reset Matrix 3000 Met Sigix 2000 Cogmind --------- Core Integrity 0/1600 Matter 280/300 Energy 90/100 System Corruption 4% Temperature Cool (0) Movement Core (150) Ox2 Location -1/Access Parts ------- > --- POWER (2) -------- (None) > --- PROPULSION (8) --- (None) > --- UTILITY (12) ----- Improved Melee Analysis Suite > --- WEAPON (3) ------- Enhanced Force Lance > --- INVENTORY (5) ---- (None) Peak State ------------ > --- POWER ------------ Matter Drive > --- PROPULSION ------- Field Propulsion Array Impulse Thruster Array Improved Q-thruster > --- UTILITY ---------- Long-range Sensor Array Advanced Signal Interpreter Advanced Terrain Scanner Advanced Terrain Scan Processor Advanced Terrain Scan Processor Advanced Terrain Scan Processor Targeting Computer Improved Melee Analysis Suite Advanced Melee Analysis Suite Hacking Suite Advanced System Shield Long-range Tractor Beam > --- WEAPON ----------- Enhanced Force Lance > --- INVENTORY -------- High-powered Transdimensional Reconstructor High-powered Transdimensional Reconstructor Terrabomb Sigix Containment Pod [Rating: 136] Favorites ----------- Power Reinforced Ion Engine Engine Reinforced Ion Engine Power Core Fusion Compressor Reactor Matter Drive Propulsion Wheel Treads Light Treads Leg Titanium Leg Wheel Wheel Hover Unit Cooled Gravmag System Flight Unit Xenon Bombardment Thruster Utility Targeting Computer Device Seismic Detector Storage Huge Storage Unit Processor Targeting Computer Hackware System Shield Protection Makeshift Propulsion Shielding Artifact Phase Redirector Weapon Assault Rifle Energy Gun Pulse Rifle Ballistic Gun Assault Rifle Launcher Rocket Launcher Impact Weapon Gravity Flail Piercing Weapon Heavy Pick Special Melee Weapon Improved Datajack Build | -11 -10 -10 -9 -8 -7 -6 -5 -5 -5 -5 -4 -4 -4 -4 -3 -3 -2 -1 ------- Run | Yrd Mat Min Mat Mat Fac Fac Fac Upp Upp Zhi Pro Fac Was Fac Res Qua Res Acc Slots Evolved 18 | . . . 2 2 2 2 2 . . . . 2 . . 2 . 2 2 Power 1 | . . . . . . 1 . . . . . . . . . . . . Propulsion 6 | . . . . 1 1 . . . . . . 1 . . 1 . 1 1 Utility 10 | . . . 2 1 1 1 2 . . . . 1 . . 1 . 1 . Weapon 1 | . . . . . . . . . . . . . . . . . . 1 Parts Attached 158 | 6 12 3 21 19 5 20 2 6 2 6 1 2 1 3 17 10 15 7 Power 11 | 1 1 . 4 . . 1 1 . . 1 . . . . 1 1 . . Engine 7 | 1 1 . 4 . . 1 . . . . . . . . . . . . Core 1 | . . . . . . . 1 . . . . . . . . . . . Reactor 3 | . . . . . . . . . . 1 . . . . 1 1 . . Propulsion 37 | 2 4 . 5 3 2 2 1 . . 3 . 1 . 1 7 4 1 1 Treads 4 | . . . 2 2 . . . . . . . . . . . . . . Leg 2 | . . . 2 . . . . . . . . . . . . . . . Wheel 10 | 2 4 . 1 1 2 . . . . . . . . . . . . . Hover 4 | . . . . . . . . . . 3 . 1 . . . . . . Flight 17 | . . . . . . 2 1 . . . . . . 1 7 4 1 1 Utility 85 | 1 4 3 9 9 3 15 . 5 1 2 1 1 1 2 8 4 13 3 Device 38 | 1 1 2 4 3 1 6 . 3 1 1 1 1 1 2 4 1 5 . Storage 6 | . 2 . 2 2 . . . . . . . . . . . . . . Processor 12 | . . . . 1 . 3 . . . . . . . . . 2 5 1 Hackware 9 | . . . . . . 5 . . . . . . . . . . 3 1 Protection 19 | . 1 1 3 3 2 1 . 2 . 1 . . . . 4 . . 1 Artifact 1 | . . . . . . . . . . . . . . . . 1 . . Weapon 25 | 2 3 . 3 7 . 2 . 1 1 . . . . . 1 1 1 3 Energy Gun 3 | 1 . . . 2 . . . . . . . . . . . . . . Energy Cannon . | . . . . . . . . . . . . . . . . . . . Ballistic Gun 11 | 1 3 . 2 5 . . . . . . . . . . . . . . Ballistic Cannon . | . . . . . . . . . . . . . . . . . . . Launcher 1 | . . . . . . 1 . . . . . . . . . . . . Special Weapon . | . . . . . . . . . . . . . . . . . . . Impact Weapon 2 | . . . 1 . . . . . . . . . . . 1 . . . Slashing Weapon . | . . . . . . . . . . . . . . . . . . . Piercing Weapon 6 | . . . . . . . . 1 . . . . . . . 1 1 3 Special Melee Weapon 2 | . . . . . . 1 . . 1 . . . . . . . . . Unidentified Prototypes 12 | . . . . . . 1 . . . 4 . . . . 5 1 1 . Parts Lost 62 | . 2 . 2 6 . 14 . . 2 . 1 . 4 . 10 5 1 15 Power 3 | . . . . . . 1 . . . . . . 1 . . . . 1 Propulsion 24 | . 2 . 2 2 . 6 . . . . . . 1 . 4 3 1 3 Utility 31 | . . . . 2 . 6 . . 2 . 1 . 2 . 5 2 . 11 Weapon 4 | . . . . 2 . 1 . . . . . . . . 1 . . . Highest Loss Streak 14 | . 1 . 2 6 . 6 . . 2 . 1 . 4 . 3 4 1 14 To Critical Strikes 2 | . . . . . . . . . . . . . 1 . . . . 1 Average Slot Usage (%) 75 | . 96 100 98 98 87 70 29 51 62 68 84 69 65 32 35 53 64 52 Engine 4 | . 14 14 11 9 7 5 . . . . . . . . . . . . Treads 5 | . . . 10 18 15 4 . . . . . . . . . . . . Leg 1 | . . . 9 . . . . . . . . . . . . . . . Wheel 3 | . 25 28 1 8 4 3 . . . . . . . . . . . . Hover 1 | . . . . . . . . . . 7 17 16 17 1 . . . . Flight 4 | . . . . . . 4 2 5 5 2 . . . 3 7 19 9 7 Device 12 | . 11 9 20 11 6 11 5 16 21 17 19 15 13 1 5 8 9 6 Storage 6 | . 12 14 11 11 15 7 . . . . . . . . . . . . Processor 10 | . . . . 8 7 15 11 11 11 11 11 10 10 10 9 12 28 22 Hackware 2 | . . . . . . 4 5 5 4 . . . . . . . 7 12 Protection 8 | . 2 4 12 13 14 4 . 3 11 14 17 10 10 10 9 3 . . Energy Gun 2 | . 12 . . 4 7 3 . . . . . . . . . . . . Ballistic Gun 7 | . 15 28 21 13 7 2 . . . . . . . . . . . . Piercing Weapon 1 | . . . . . . . . 2 5 5 5 5 4 . . 4 3 1 Peak Build Rating 136 | 6 8 8 16 24 25 36 32 53 49 73 78 74 81 44 86 111 136 110 Average Rating 43 | 4 6 8 13 19 21 30 22 42 48 58 74 68 65 33 46 84 119 89 On Entrance 38 | . 6 8 8 14 17 25 14 32 48 47 73 67 74 28 44 35 87 105 Naked Turns . | . . . . . . . . . . . . . . . . . . . Heaviest Build 126 | 8 18 18 98 126 120 125 6 13 12 30 32 29 29 8 28 28 27 18 Greatest Support 45 | 20 26 20 43 42 42 22 13 13 13 33 33 45 45 13 28 43 40 24 Greatest Overweight (x) 11 | . 1 . 2 7 11 6 . . . 1 . . . . . . . . Average Overweight (x) . | . . . . 3 3 . . . . . . . . . . . . . Largest Inventory Capacity 25 | 5 10 10 25 25 25 25 5 5 5 5 5 5 5 5 5 5 5 5 Average Capacity 11 | 5 7 10 16 23 25 16 5 5 5 5 5 5 5 5 5 5 5 5 Most Carried 25 | 5 10 10 15 25 22 24 5 5 5 5 5 5 5 5 5 5 5 5 Average Carried 9 | 3 7 10 10 19 18 15 3 4 4 4 5 5 5 3 3 4 4 4 Final Capacity 25 | 5 10 10 15 25 25 5 5 5 5 5 5 5 5 5 5 5 5 5 Final Carried 22 | 4 10 10 15 20 22 3 4 5 4 5 5 5 5 4 3 5 5 . Class Distribution -------------------- 32% | Scavenger-Mutant 27% | Mutant 13% | Hacker-Scout 13% | Derelict-Mutant 6% | Alien-Scout Dominant Class ---------------- Mutant | -10/Materials Scavenger-Mutant | -10/Mines Scavenger-Mutant | -9/Materials Scavenger-Mutant | -8/Materials Mutant | -7/Factory Mutant | -6/Factory Mutant | -5/Factory Mutant | -5/Upper Caves Derelict-Mutant | -5/Upper Caves Derelict-Mutant | -5/Zhirov Derelict-Mutant | -4/Proximity Caves Derelict-Mutant | -4/Factory Derelict-Mutant | -4/Waste Mutant | -4/Factory Mutant | -3/Research Alien-Scout | -3/Quarantine Hacker-Scout | -2/Research Hacker-Scout | -1/Access Resources | -11 -10 -10 -9 -8 -7 -6 -5 -5 -5 -5 -4 -4 -4 -4 -3 -3 -2 -1 ----------- Run | Yrd Mat Min Mat Mat Fac Fac Fac Upp Upp Zhi Pro Fac Was Fac Res Qua Res Acc Matter Collected 2795 | 256 396 46 427 336 92 348 . 195 120 . 37 . . . 91 219 90 142 Remotely . | . . . . . . . . . . . . . . . . . . . Salvage Created 1724 | 26 296 46 545 329 92 280 . . . . . . . . 20 . 90 . Parts 117 | 2 23 2 47 18 8 9 . . . . . . . . . . 8 . Haulers Intercepted 1 | . 1 . . . . . . . . . . . . . . . . . Recyclers Shooed 6 | . 3 . 1 . . 2 . . . . . . . . . . . . Parts Field Recycled . | . . . . . . . . . . . . . . . . . . . Retrieved Matter . | . . . . . . . . . . . . . . . . . . . Parts Self-Destructed . | . . . . . . . . . . . . . . . . . . . Prevented 1 | . . . . . . . . . 1 . . . . . . . . . Kills | -11 -10 -10 -9 -8 -7 -6 -5 -5 -5 -5 -4 -4 -4 -4 -3 -3 -2 -1 ------- Run | Yrd Mat Min Mat Mat Fac Fac Fac Upp Upp Zhi Pro Fac Was Fac Res Qua Res Acc Combat Hostiles Destroyed 34 | . 6 1 12 6 2 7 . . . . . . . . . . . . Melee 1 | . . . . 1 . . . . . . . . . . . . . . Guns 29 | . 6 1 12 5 2 3 . . . . . . . . . . . . AOE 4 | . . . . . . 4 . . . . . . . . . . . . Classes Destroyed 13 | 1 6 . 3 1 1 1 . . . . . . . . . . . . Worker 3 | . 1 . . . . 1 . . . . . . . . . . 1 . Builder 4 | . 1 . . . . 2 . . . . . . . . 1 . . . Tunneler 3 | 1 . . . . 1 . . . . . . . . . . . 1 . Hauler 1 | . 1 . . . . . . . . . . . . . . . . . Recycler 1 | . . . . . . 1 . . . . . . . . . . . . Mechanic 2 | . 1 . 1 . . . . . . . . . . . . . . . Operator 1 | . . . 1 . . . . . . . . . . . . . . . Watcher 4 | . . . 2 1 . . . . . . . . . . . . 1 . Swarmer 11 | . 3 . 5 . . 3 . . . . . . . . . . . . Grunt 13 | . 3 1 1 4 1 3 . . . . . . . . . . . . Sentry 7 | . . . 6 1 . . . . . . . . . . . . . . Hunter 2 | . . . . 1 . 1 . . . . . . . . . . . . Programmer 1 | . . . . . 1 . . . . . . . . . . . . . Best Kill Streak 5 | 1 4 1 2 3 1 5 . . . . . . . . 1 . 1 . Combat Bots Only 3 | . 3 1 2 3 1 3 . . . . . . . . . . . . Max Kills in Single Turn 3 | 1 2 1 1 1 1 3 . . . . . . . . 1 . 1 . Gunslinging 1 | . 1 . . . . . . . . . . . . . . . . . Exploded 3 | . . . . . . 3 . . . . . . . . . . . . Melee 1 | . . . . 1 . . . . . . . . . . . . . . Uniques/NPCs Destroyed . | . . . . . . . . . . . . . . . . . . . Combat | -11 -10 -10 -9 -8 -7 -6 -5 -5 -5 -5 -4 -4 -4 -4 -3 -3 -2 -1 -------- Run | Yrd Mat Min Mat Mat Fac Fac Fac Upp Upp Zhi Pro Fac Was Fac Res Qua Res Acc Hostile Shots Fired 1025 | . 45 4 51 57 14 145 . 4 8 . 116 . 4 . 243 143 13 178 Missed 528 | . 11 1 16 13 4 63 . 3 6 . 73 . 1 . 161 93 7 76 Damage Taken 9787 | . 389 44 392 1038 151 1423 17 23 76 . 588 . 137 . 1988 959 156 2406 Core 3431 | . 16 24 63 47 31 499 17 23 18 . 155 . . . 918 101 . 1519 Absorbed by Shields 48 | . . . . 48 . . . . . . . . . . . . . . Redirected to Shielding 506 | . . 3 11 . 9 . . . . . 174 . 8 . 301 . . . Ignored by Resistances 208 | . . . . . . 62 . . . . 130 . . . 16 . . . Core Remaining (%) 77 | 100 . 84 84 91 95 41 . . . . 78 . . 100 . 15 90 . Volleys Fired 179 | 1 38 3 55 31 12 39 . . . . . . . . . . . . Largest 2 | 2 2 2 2 2 2 2 . . . . . . . . . . . . Hottest 96 | 70 70 40 43 86 83 96 . . . . . . . . . . . . Shots Fired 352 | 2 76 6 110 60 24 74 . . . . . . . . . . . . Gun 343 | 2 76 6 110 60 24 65 . . . . . . . . . . . . Cannon . | . . . . . . . . . . . . . . . . . . . Launcher 9 | . . . . . . 9 . . . . . . . . . . . . Special . | . . . . . . . . . . . . . . . . . . . Kinetic 244 | 1 40 6 110 45 12 30 . . . . . . . . . . . . Thermal 99 | 1 36 . . 15 12 35 . . . . . . . . . . . . Explosive 9 | . . . . . . 9 . . . . . . . . . . . . Electromagnetic . | . . . . . . . . . . . . . . . . . . . Robot Hit Streak 30 | 1 10 3 8 11 25 30 . . . . . . . . . . . . Robot Miss Streak 5 | . 3 1 5 2 1 2 . . . . . . . . . . . . Penetration Max . | . . . . . . . . . . . . . . . . . . . Secondary Targets 4 | . 3 . . . . 1 . . . . . . . . . . . . Max Gunslinging Chain 1 | . 1 . . . . 1 . . . . . . . . . . . . Shots Hit Robots 265 | 1 51 5 68 46 19 65 . . 3 3 . . . . 1 . 3 . Core Hits 112 | 1 18 3 25 19 6 39 . . . . . . . . . . 1 . Critical Kills . | . . . . . . . . . . . . . . . . . . . Critical Parts Destroyed 3 | . . . 1 1 . . . . . . . . . . 1 . . . Critical Strikes 9 | . 1 . 1 3 1 1 . . . . . . . . 1 . 1 . Burn 5 | . 1 . . 2 1 1 . . . . . . . . . . . . Destroy 2 | . . . 1 1 . . . . . . . . . . . . . . Smash 1 | . . . . . . . . . . . . . . . 1 . . . Impale 1 | . . . . . . . . . . . . . . . . . 1 . Melee Attacks 40 | . . . 3 . . 1 . . 3 3 . . . . 2 19 4 5 Impact 5 | . . . 3 . . . . . . . . . . . 2 . . . Slashing . | . . . . . . . . . . . . . . . . . . . Piercing 28 | . . . . . . . . . . . . . . . . 19 4 5 Sneak Attacks 10 | . . . . . . 1 . . 3 3 . . . . 1 . 2 . Combat Hostiles . | . . . . . . . . . . . . . . . . . . . Follow-up Attacks . | . . . . . . . . . . . . . . . . . . . Damage Inflicted 4833 | 12 634 64 932 737 268 1615 . . . . . . . . 217 . 354 . Guns 3326 | 12 634 64 919 669 268 760 . . . . . . . . . . . . Cannons . | . . . . . . . . . . . . . . . . . . . Explosions 835 | . . . . . . 835 . . . . . . . . . . . . Melee 571 | . . . . . . . . . . . . . . . 217 . 354 . Ramming 101 | . . . 13 68 . 20 . . . . . . . . . . . . Kinetic 2030 | . 287 64 919 466 86 208 . . . . . . . . . . . . Thermal 1296 | 12 347 . . 203 182 552 . . . . . . . . . . . . Explosive 835 | . . . . . . 835 . . . . . . . . . . . . Electromagnetic . | . . . . . . . . . . . . . . . . . . . Impact 217 | . . . . . . . . . . . . . . . 217 . . . Slashing . | . . . . . . . . . . . . . . . . . . . Piercing 354 | . . . . . . . . . . . . . . . . . 354 . Highest Corruption 8 | . . . . . 1 1 1 1 5 5 5 . 8 8 2 2 . 4 Average Corruption 1 | . . . . . 1 1 1 1 1 5 4 . 8 8 1 1 . 3 Corruption Purged 7 | . . . . . . . . . . . 5 . . . 2 . . . Corruption Blocked 5 | . . . . . . 5 . . . . . . . . . . . . Effects 15 | . . . . . . 2 . . 2 2 2 . 1 3 1 2 . . Message Errors 4 | . . . . . . 1 . . . . 1 . 1 1 . . . . Matter Fused 2 | . . . . . . . . . . . 1 . . . . 1 . . Heat Flow Errors 2 | . . . . . . . . . . 1 . . . 1 . . . . Energy Discharges 4 | . . . . . . 1 . . 1 1 . . . . 1 . . . Data Loss (minor) 2 | . . . . . . . . . 1 . . . . . . 1 . . Alerts 1 | . . . . . . . . . . . . . . 1 . . . . Overload Shots . | . . . . . . . . . . . . . . . . . . . Overflow Damage 381 | . . . . . . 20 . . . . . . . . 217 . 144 . Projectiles . | . . . . . . . . . . . . . . . . . . . Explosions 20 | . . . . . . 20 . . . . . . . . . . . . Melee 361 | . . . . . . . . . . . . . . . 217 . 144 . Knockbacks . | . . . . . . . . . . . . . . . . . . . Impact . | . . . . . . . . . . . . . . . . . . . Kinetic . | . . . . . . . . . . . . . . . . . . . Secondary . | . . . . . . . . . . . . . . . . . . . Self-Inflicted Damage 120 | . . . . 31 . 89 . . . . . . . . . . . . Shots 3 | . . . . . . 3 . . . . . . . . . . . . Rammed 11 | . . . 1 8 . 2 . . . . . . . . . . . . Targets Rammed 11 | . . . 1 8 . 2 . . . . . . . . . . . . Kicked . | . . . . . . . . . . . . . . . . . . . Crushed . | . . . . . . . . . . . . . . . . . . . Highest Temperature 312 | 9 312 2 17 244 141 34 . . . 100 . . . 155 . . . . Average Temperature 75 | 6 137 2 10 75 66 12 . . . 53 . . . 96 . . . . Received Heat Transfer 1546 | . 177 24 126 223 45 426 . 12 9 . 72 . . . 192 69 27 144 Effects 1 | . 1 . . . . . . . . . . . . . . . . . Interference 1 | . 1 . . . . . . . . . . . . . . . . . Siege Activations . | . . . . . . . . . . . . . . . . . . . Robots Corrupted . | . . . . . . . . . . . . . . . . . . . Combat Hostiles . | . . . . . . . . . . . . . . . . . . . Parts Fried . | . . . . . . . . . . . . . . . . . . . Impact Corruptions 6 | . . . . . . . . . . . . . . . 6 . . . Robots Melted . | . . . . . . . . . . . . . . . . . . . Combat Hostiles . | . . . . . . . . . . . . . . . . . . . Parts Melted 5 | . 2 . . 1 2 . . . . . . . . . . . . . Heat Transferred 3441 | 37 1110 . . 592 444 1258 . . . . . . . . . . . . Parts Sabotaged . | . . . . . . . . . . . . . . . . . . . Parts Stolen . | . . . . . . . . . . . . . . . . . . . Parts Stripped . | . . . . . . . . . . . . . . . . . . . Power Chain Reactions . | . . . . . . . . . . . . . . . . . . . Alert | -11 -10 -10 -9 -8 -7 -6 -5 -5 -5 -5 -4 -4 -4 -4 -3 -3 -2 -1 ------- Run | Yrd Mat Min Mat Mat Fac Fac Fac Upp Upp Zhi Pro Fac Was Fac Res Qua Res Acc Peak Influence 929 | 5 201 59 253 232 30 481 230 . . . . 267 108 62 929 863 694 347 Initial 460 | . 3 14 22 34 . 14 230 . . . . 267 93 47 32 460 417 180 Average 210 | 2 63 23 125 95 8 131 230 . . . . 267 96 54 468 640 474 236 Maximum Alert Level 3 | . 1 . 1 1 . 2 1 . . . . 1 . . 3 3 2 1 Low Security (%) 62 | 100 97 100 83 81 100 74 . . . . . . 100 100 24 . . 29 Level 1 16 | . 2 . 16 18 . 16 100 . . . . 100 . . 24 . 16 70 Level 2 16 | . . . . . . 8 . . . . . . . . 15 71 83 . Level 3 5 | . . . . . . . . . . . . . . . 36 28 . . Level 4 . | . . . . . . . . . . . . . . . . . . . Level 5 . | . . . . . . . . . . . . . . . . . . . High Security . | . . . . . . . . . . . . . . . . . . . Max Security . | . . . . . . . . . . . . . . . . . . . Squads Dispatched 34 | . . . 1 3 1 7 . . 1 . 1 . . . 10 3 2 5 Investigation 15 | . . . . 1 . 2 . . . . 1 . . . 6 2 1 2 Extermination 5 | . . . . . 1 2 . . . . . . . . 1 . 1 . Reinforcement 13 | . . . 1 2 . 3 . . . . . . . . 3 1 . 3 Assault 1 | . . . . . . . . . 1 . . . . . . . . . Garrison . | . . . . . . . . . . . . . . . . . . . Intercept . | . . . . . . . . . . . . . . . . . . . Searches Triggered 4 | . . . . . . . . . . . . . . . 1 1 2 . Construction Impeded 1 | . . . . . . 1 . . . . . . . . . . . . Haulers Reinforced . | . . . . . . . . . . . . . . . . . . . Active Scanning Responses . | . . . . . . . . . . . . . . . . . . . Cargo Convoy Interrupts . | . . . . . . . . . . . . . . . . . . . Stealth | -11 -10 -10 -9 -8 -7 -6 -5 -5 -5 -5 -4 -4 -4 -4 -3 -3 -2 -1 --------- Run | Yrd Mat Min Mat Mat Fac Fac Fac Upp Upp Zhi Pro Fac Was Fac Res Qua Res Acc Distress Signals 14 | . 1 . . 1 . 2 . . . . . . . . 3 3 2 2 Communications Jammed . | . . . . . . . . . . . . . . . . . . . Distress Signals . | . . . . . . . . . . . . . . . . . . . Times Spotted 341 | . 13 2 21 10 2 35 . 5 9 . 36 . 6 2 90 46 27 37 Peak Tracking Total 20 | . 3 2 4 3 1 9 . 3 14 . 12 . 6 2 20 16 11 19 Tactical Retreats 57 | . . 1 2 . . 7 . 1 2 . 9 . . . 16 10 5 4 Traps | -11 -10 -10 -9 -8 -7 -6 -5 -5 -5 -5 -4 -4 -4 -4 -3 -3 -2 -1 ------- Run | Yrd Mat Min Mat Mat Fac Fac Fac Upp Upp Zhi Pro Fac Was Fac Res Qua Res Acc Traps Triggered 9 | . . . . 1 . 2 1 . . . . 1 . . 2 1 1 . Indirectly . | . . . . . . . . . . . . . . . . . . . Trap Hack Attempts . | . . . . . . . . . . . . . . . . . . . Triggered . | . . . . . . . . . . . . . . . . . . . Disarmed . | . . . . . . . . . . . . . . . . . . . Reprogrammed . | . . . . . . . . . . . . . . . . . . . Reused . | . . . . . . . . . . . . . . . . . . . Traps Extracted . | . . . . . . . . . . . . . . . . . . . Installed . | . . . . . . . . . . . . . . . . . . . Triggered . | . . . . . . . . . . . . . . . . . . . Most Traps Carried 1 | . . . . . . . . 1 1 1 . . . . . . . . Machines | -11 -10 -10 -9 -8 -7 -6 -5 -5 -5 -5 -4 -4 -4 -4 -3 -3 -2 -1 ---------- Run | Yrd Mat Min Mat Mat Fac Fac Fac Upp Upp Zhi Pro Fac Was Fac Res Qua Res Acc Machines Disabled 10 | . 1 . . 1 . 2 . . . . . . . . . 6 . . Max in Single Turn 1 | . 1 . . 1 . 1 . . . . . . . . . 1 . . Garrison Access 3 | . . . . . . . . . . . . . . 1 . 1 . 1 Machines Repaired . | . . . . . . . . . . . . . . . . . . . Machines Dismantled . | . . . . . . . . . . . . . . . . . . . Machines Sabotaged . | . . . . . . . . . . . . . . . . . . . Overloaded Fab Kills . | . . . . . . . . . . . . . . . . . . . Hacking | -11 -10 -10 -9 -8 -7 -6 -5 -5 -5 -5 -4 -4 -4 -4 -3 -3 -2 -1 --------- Run | Yrd Mat Min Mat Mat Fac Fac Fac Upp Upp Zhi Pro Fac Was Fac Res Qua Res Acc Machines Accessed 60 | . 4 . 5 2 . 11 1 1 . 4 1 . . 1 8 9 6 7 Terminals 47 | . 4 . 5 2 . 9 . . . . 1 . . . 7 8 5 6 Fabricators 2 | . . . . . . 1 1 . . . . . . . . . . . Repair Stations . | . . . . . . . . . . . . . . . . . . . Recycling Units . | . . . . . . . . . . . . . . . . . . . Scanalyzers . | . . . . . . . . . . . . . . . . . . . Garrison Access 6 | . . . . . . 1 . . . . . . . 1 1 1 1 1 Total Hacks 147 | . 9 . 13 4 . 27 1 1 . 10 3 . . 1 22 15 16 25 Successful 58 | . 8 . 8 2 . 10 . 1 . 10 3 . . 1 2 5 3 5 Failed 89 | . 1 . 5 2 . 17 1 . . . . . . . 20 10 13 20 Catastrophic 25 | . . . . . . 5 1 . . . . . . . 8 4 1 6 Database Lockouts . | . . . . . . . . . . . . . . . . . . . Manual 64 | . 5 . 10 3 . 24 . . . . . . . . 8 4 6 4 Terminals 121 | . 9 . 13 4 . 22 . . . . 3 . . . 18 13 15 24 Fabricators 2 | . . . . . . 1 1 . . . . . . . . . . . Repair Stations . | . . . . . . . . . . . . . . . . . . . Recycling Units . | . . . . . . . . . . . . . . . . . . . Scanalyzers . | . . . . . . . . . . . . . . . . . . . Garrison Access 13 | . . . . . . 4 . . . . . . . 1 4 2 1 1 Terminal Hacks 33 | . 4 . 2 1 . 1 . 1 . 10 3 . . . 2 4 1 4 Record 12 | . . . . . . . . . . 2 3 . . . 1 3 1 2 Part Schematic 4 | . . . . . . . . . . 4 . . . . . . . . Robot Analysis 1 | . . . . . . 1 . . . . . . . . . . . . Prototype ID Bank 6 | . 2 . . . . . . . . 4 . . . . . . . . Open Door 1 | . . . . . . . . 1 . . . . . . . . . . Level Access Points 1 | . . . 1 . . . . . . . . . . . . . . . Locate Traps 2 | . 1 . . . . . . . . . . . . . . . . 1 Zone Layout 6 | . 1 . 1 1 . . . . . . . . . . 1 1 . 1 Fabricator Hacks 1 | . . . . . . 1 . . . . . . . . . . . . Build 1 | . . . . . . 1 . . . . . . . . . . . . Repair Station Hacks . | . . . . . . . . . . . . . . . . . . . Recycling Unit Hacks . | . . . . . . . . . . . . . . . . . . . Scanalyzer . | . . . . . . . . . . . . . . . . . . . Garrison Access Hacks 3 | . . . . . . . . . . . . . . 1 . 1 . 1 Seal Access 3 | . . . . . . . . . . . . . . 1 . 1 . 1 Unauthorized Hacks 21 | . 4 . 6 1 . 8 . . . . . . . . . . 2 . Terminals 21 | . 4 . 6 1 . 8 . . . . . . . . . . 2 . Assimilate 1 | . . . . . . 1 . . . . . . . . . . . . Botnet 19 | . 4 . 5 1 . 7 . . . . . . . . . . 2 . Operators 1 | . . . 1 . . . . . . . . . . . . . . . Fabricators . | . . . . . . . . . . . . . . . . . . . Repair Stations . | . . . . . . . . . . . . . . . . . . . Recycling Units . | . . . . . . . . . . . . . . . . . . . Scanalyzers . | . . . . . . . . . . . . . . . . . . . Garrison Access . | . . . . . . . . . . . . . . . . . . . Data Cores Recovered . | . . . . . . . . . . . . . . . . . . . Used . | . . . . . . . . . . . . . . . . . . . Hacking Detections 41 | . 2 . 2 2 . 10 1 . . . 1 . . . 8 5 4 6 Full Trace Events 14 | . 1 . . . . 2 . . . . 1 . . . 6 2 . 2 Feedback Events 3 | . . . . . . 1 . . . . . . . . 1 . . 1 Corruption 2 | . . . . . . 1 . . . . . . . . 1 . . . Hackware Fried 1 | . . . . . . . . . . . . . . . . . . 1 Feedback Blocked . | . . . . . . . . . . . . . . . . . . . Robot Schematics Acquired . | . . . . . . . . . . . . . . . . . . . Robots Built 4 | . . . . . . 4 . . . . . . . . . . . . Authchips . | . . . . . . . . . . . . . . . . . . . Time 40 | . . . . . . 40 . . . . . . . . . . . . Total Robot Build Rating 4 | . . . . . . 4 . . . . . . . . . . . . Part Schematics Acquired 4 | . . . . . . . . . . 4 . . . . . . . . Parts Built . | . . . . . . . . . . . . . . . . . . . Authchips . | . . . . . . . . . . . . . . . . . . . Time . | . . . . . . . . . . . . . . . . . . . Total Part Build Rating . | . . . . . . . . . . . . . . . . . . . Parts Repaired . | . . . . . . . . . . . . . . . . . . . Time . | . . . . . . . . . . . . . . . . . . . Parts Recycled . | . . . . . . . . . . . . . . . . . . . Recycled Matter . | . . . . . . . . . . . . . . . . . . . Retrieved Matter . | . . . . . . . . . . . . . . . . . . . Retrieved Components . | . . . . . . . . . . . . . . . . . . . Parts Scanalyzed . | . . . . . . . . . . . . . . . . . . . Part Schematics Acquired . | . . . . . . . . . . . . . . . . . . . Parts Damaged . | . . . . . . . . . . . . . . . . . . . Bothacking | -11 -10 -10 -9 -8 -7 -6 -5 -5 -5 -5 -4 -4 -4 -4 -3 -3 -2 -1 ------------ Run | Yrd Mat Min Mat Mat Fac Fac Fac Upp Upp Zhi Pro Fac Was Fac Res Qua Res Acc Used RIF Installer . | . . . . . . . . . . . . . . . . . . . Robots Hacked 4 | . . . . . . 1 . . . 3 . . . . . . . . Non-combat 1 | . . . . . . 1 . . . . . . . . . . . . Combat 3 | . . . . . . . . . . 3 . . . . . . . . Robot Hacks Applied 4 | . . . . . . 1 . . . 3 . . . . . . . . parse_system 4 | . . . . . . 1 . . . 3 . . . . . . . . Relay Couplers Released . | . . . . . . . . . . . . . . . . . . . Fabnet Peak Effective % . | . . . . . . . . . . . . . . . . . . . Robots Rewired 2 | . . . . . . . . . 2 . . . . . . . . . Allies Hacked . | . . . . . . . . . . . . . . . . . . . Hacks Repelled . | . . . . . . . . . . . . . . . . . . . Allies | -11 -10 -10 -9 -8 -7 -6 -5 -5 -5 -5 -4 -4 -4 -4 -3 -3 -2 -1 -------- Run | Yrd Mat Min Mat Mat Fac Fac Fac Upp Upp Zhi Pro Fac Was Fac Res Qua Res Acc Total Allies 6 | . . . . . . 4 . . 2 . . . . . . . . . Largest Group 3 | . . . . . . 3 . . 2 . . . . . . . . . Highest-Rated Group 59 | . . . . . . 18 . . 59 . . . . . . . . . Highest-Rated Ally 30 | . . . . . . 6 . . 30 . . . . . . . . . Total Orders . | . . . . . . . . . . . . . . . . . . . Ally Attacks 9 | . . . . . . . . . 9 . . . . . . . . . Total Damage 187 | . . . . . . . . . 187 . . . . . . . . . Kills 1 | . . . . . . . . . 1 . . . . . . . . . Allies Corrupted 1 | . . . . . . 1 . . . . . . . . . . . . Allies Melted . | . . . . . . . . . . . . . . . . . . . Intel | -11 -10 -10 -9 -8 -7 -6 -5 -5 -5 -5 -4 -4 -4 -4 -3 -3 -2 -1 ------- Run | Yrd Mat Min Mat Mat Fac Fac Fac Upp Upp Zhi Pro Fac Was Fac Res Qua Res Acc Robot Analysis Total 1 | . . . . . . 1 . . . . . . . . . . . . Derelict Logs Recovered 5 | . . . . . . . . 1 2 . 2 . . . . . . . Drone Launches . | . . . . . . . . . . . . . . . . . . . Drone Recoveries . | . . . . . . . . . . . . . . . . . . . Exploration | -11 -10 -10 -9 -8 -7 -6 -5 -5 -5 -5 -4 -4 -4 -4 -3 -3 -2 -1 ------------- Run | Yrd Mat Min Mat Mat Fac Fac Fac Upp Upp Zhi Pro Fac Was Fac Res Qua Res Acc Turns Passed 7272 | 54 475 97 1210 485 884 775 26 304 373 95 297 44 58 57 523 458 640 417 Spaces Moved 8900 | 45 384 99 569 203 319 935 43 729 580 175 698 96 133 119 1101 987 989 696 Core 230 | 7 . . . . . 191 20 . . . . . . . . . . 12 Treads 356 | . . . 170 4 152 30 . . . . . . . . . . . . Legs 311 | . . . 311 . . . . . . . . . . . . . . . Wheels 1051 | 38 384 99 88 199 167 76 . . . . . . . . . . . . Hover 1031 | . . . . . . . . . . 72 698 96 133 32 . . . . Flight 5921 | . . . . . . 638 23 729 580 103 . . . 87 1101 987 989 684 Fastest Speed 26 | 50 80 80 80 115 155 32 40 40 40 40 42 40 40 40 26 29 35 37 Average Speed 61 | 75 82 80 167 156 230 63 44 40 40 41 42 41 41 42 37 33 37 37 Slowest Speed 545 | 80 100 80 320 312 312 545 50 40 40 100 42 42 50 50 45 39 39 50 Overloaded Moves . | . . . . . . . . . . . . . . . . . . . Propulsion Burnouts . | . . . . . . . . . . . . . . . . . . . Robots Hopped 33 | . . . . . . 7 . 1 1 . . . . . 10 3 2 9 Cave-ins Triggered 1 | . . . . . . . . . . . . . . . . . . 1 Teleports 5 | . . . . . . . . . . . . . . . 1 2 1 1 Exploration Rate (%) 41 | 3 63 23 57 23 8 30 1 70 66 62 90 2 87 3 44 96 38 27 Regions Visited 18 Branch Regions 6 Pre-discovered Areas 2 | . . . . . . . . . 1 . 1 . . . . . . . Known Exits Taken 11 | . . . 1 . . 1 1 1 1 1 1 . . 1 1 1 1 . Unknown Exits Taken 5 | 1 1 1 . 1 1 . . . . . . . . . . . . . Scrap Searched 5 | . . . . . . . . 2 2 . 1 . . . . . . . Spaces Dug 16 | . . . 1 . . . . . . . . . . . 1 9 . 5 Terrain Destroyed 49 | . . . 1 . . 33 . . . . . . . . 1 9 . 5 Melee 16 | . . . 1 . . . . . . . . . . . 1 9 . 5 Projectile . | . . . . . . . . . . . . . . . . . . . AOE 33 | . . . . . . 33 . . . . . . . . . . . . Terrain Rammed . | . . . . . . . . . . . . . . . . . . . Walls Destroyed . | . . . . . . . . . . . . . . . . . . . Machines Disabled . | . . . . . . . . . . . . . . . . . . . Actions | -11 -10 -10 -9 -8 -7 -6 -5 -5 -5 -5 -4 -4 -4 -4 -3 -3 -2 -1 --------- Run | Yrd Mat Min Mat Mat Fac Fac Fac Upp Upp Zhi Pro Fac Was Fac Res Qua Res Acc Total 10294 | 62 469 110 716 315 447 1053 49 738 718 198 700 99 135 125 1198 1086 1243 833 Wait 826 | 1 16 4 30 26 105 26 . . 135 4 2 . 1 . 71 50 229 126 Move 8824 | 44 383 98 568 202 318 921 42 726 577 174 697 96 132 118 1082 980 984 682 Hop 26 | . . . . . . 6 . 1 1 . . . . . 8 3 2 5 Pick Up 118 | 10 11 1 19 18 7 12 4 3 . 6 . . . 3 10 13 . 1 Fast Attach 50 | . 1 . 4 2 . 1 . 4 1 2 1 2 1 . 8 5 15 3 Attach 79 | 6 2 . 3 9 5 16 2 2 1 4 . . . 3 11 8 1 6 Detach 6 | . . . . . . . . . . 1 . . . . . . 2 3 Swap 38 | . 9 3 14 8 . 3 . . . . . . . . . 1 . . Drop 97 | . 9 1 19 11 . 26 1 2 . 4 . 1 1 1 6 7 6 2 Fire 179 | 1 38 3 55 31 12 39 . . . . . . . . . . . . Melee 40 | . . . 3 . . 1 . . 3 3 . . . . 2 19 4 5 Ram 10 | . . . . 8 . 2 . . . . . . . . . . . . Kick . | . . . . . . . . . . . . . . . . . . . Crush 1 | . . . 1 . . . . . . . . . . . . . . . Escape Stasis . | . . . . . . . . . . . . . . . . . . . Rewire . | . . . . . . . . . . . . . . . . . . . Trap . | . . . . . . . . . . . . . . . . . . . Miscellaneous . | . . . . . . . . . . . . . . . . . . . Route ------- -11/Scrapyard -10/Materials (discovered 4 exits: *Mat x2 / [*Min x2]) -10/Mines -9/Materials (discovered 3 exits: *Mat x3) -8/Materials -7/Factory -6/Factory -5/Factory -5/Upper Caves -5/Upper Caves (discovered 2 exits: *Fac / *Zhi) -5/Zhirov -4/Proximity Caves -4/Factory -4/Waste -4/Factory -3/Research -3/Quarantine -2/Research (discovered 3 exits: *Acc / *Tes x2) -1/Access History --------- Turn | Location | Event 39 | -11/Scrapyard | Discovered new exit (range 16) 55 | -11/Scrapyard | Entered Materials 132 | -10/Materials | Discovered new exit (range 5) 319 | -10/Materials | Build established: Mutant 349 | -10/Materials | Discovered new exit (range 16) 399 | -10/Materials | Discovered new exit (range 17) 399 | -10/Materials | Discovered new exit (range 12) 530 | -10/Materials | Entered Mines 568 | -10/Mines | Met a Derelict bent on vengeance 617 | -10/Mines | Discovered new exit (range 13) 626 | -10/Mines | Build established: Scavenger-Mutant 627 | -10/Mines | Entered Materials 627 | -9/Materials | Evolved 2 slots: Utility x2 1776 | -9/Materials | Identified exit to Materials 1837 | -9/Materials | Entered another Materials area 1837 | -8/Materials | Evolved 2 slots: Propulsion x1, Utility x1 2222 | -8/Materials | Discovered new exit (range 16) 2322 | -8/Materials | Entered Factory 2322 | -7/Factory | Evolved 2 slots: Propulsion x1, Utility x1 2350 | -7/Factory | Lost 6 parts (2n2u2w) 2503 | -7/Factory | Build established: Mutant 3167 | -7/Factory | Discovered new exit (range 9) 3206 | -7/Factory | Entered another Factory area 3206 | -6/Factory | Evolved 2 slots: Power x1, Utility x1 3227 | -6/Factory | Build established: Scavenger-Mutant 3423 | -6/Factory | Lost 3 parts (3n) 3736 | -6/Factory | Fabricated K-01 Serf (x4) 3890 | -6/Factory | Core integrity fell below 50% 3920 | -6/Factory | Lost 6 parts (1p2n3u) 3974 | -6/Factory | Discovered new exit (range 8) 3980 | -6/Factory | Identified exit to Factory 3981 | -6/Factory | Entered another Factory area 3981 | -5/Factory | Evolved 2 slots: Utility x2 4000 | -5/Factory | Discovered new exit (range 10) 4003 | -5/Factory | Identified exit to Upper Caves 4007 | -5/Factory | Entered Upper Caves 4007 | -5/Upper Caves | Learned 4 Factory zone layouts 4012 | -5/Upper Caves | Lost 3 parts (3u) 4144 | -5/Upper Caves | Spotted B-75 Beast 4306 | -5/Upper Caves | Discovered new exit (range 9) 4310 | -5/Upper Caves | Identified exit to Upper Caves 4311 | -5/Upper Caves | Entered another Upper Caves area 4328 | -5/Upper Caves | Discovered new exit (range 5) 4330 | -5/Upper Caves | Identified exit to Factory 4474 | -5/Upper Caves | Learned Factory garrison access intel 4513 | -5/Upper Caves | Build established: Derelict-Mutant 4637 | -5/Upper Caves | Attracted the attention of an 0b10 outpost 4678 | -5/Upper Caves | Discovered new exit (range 13) 4683 | -5/Upper Caves | Identified exit to Zhirov 4684 | -5/Upper Caves | Entered Zhirov 4684 | -5/Zhirov | Discovered new exit (range 3) 4692 | -5/Zhirov | Met Zhirov 4714 | -5/Zhirov | Zhirov requested help retrieving the SGEMP Prototype 4755 | -5/Zhirov | Found Alien Artifact 4760 | -5/Zhirov | Found Alien Artifact 4778 | -5/Zhirov | Identified exit to Proximity Caves 4779 | -5/Zhirov | Entered Proximity Caves 4838 | -4/Proximity Caves | Learned location of Quarantine (-3) 4878 | -4/Proximity Caves | Learned Research stockpile data 4982 | -4/Proximity Caves | Attracted the attention of an 0b10 checkpoint 5061 | -4/Proximity Caves | Discovered exit to Factory (range 6) 5069 | -4/Proximity Caves | Learned location of 1 exit from Research 5069 | -4/Proximity Caves | Learned location of 1 exit from Factory 5076 | -4/Proximity Caves | Entered Factory 5076 | -4/Factory | Evolved 2 slots: Propulsion x1, Utility x1 5077 | -4/Factory | Identified exit to Research 5079 | -4/Factory | Loaded intel: 4 garrison access locations 5120 | -4/Factory | Sucked down chute 5120 | -4/Factory | Entered Waste 5124 | -4/Waste | Spotted C-40 Crusher 5135 | -4/Waste | EMP discharged 5139 | -4/Waste | Found Broken Heavy Servo Lattice 5153 | -4/Waste | Spotted C-40 Crusher 5155 | -4/Waste | Spotted C-40 Crusher 5156 | -4/Waste | Spotted C-40 Crusher 5156 | -4/Waste | Spotted C-40 Crusher 5166 | -4/Waste | Spotted C-40 Crusher 5166 | -4/Waste | Crushed by Compactor (1 part destroyed, 1 dropped) 5167 | -4/Waste | Crushed by Compactor (1 part destroyed, 1 dropped) 5168 | -4/Waste | Crushed by Compactor (1 part destroyed, 2 dropped) 5171 | -4/Waste | Discovered new exit (range 16) 5178 | -4/Waste | Identified exit to Factory 5178 | -4/Waste | Entered Factory 5199 | -4/Factory | Lost 4 parts (1p1n2u) 5234 | -4/Factory | Discovered exit to Research (range 4) 5235 | -4/Factory | Entered Research 5235 | -3/Research | Evolved 2 slots: Propulsion x1, Utility x1 5236 | -3/Research | Identified exit to Quarantine 5332 | -3/Research | Found Prototype Device 5357 | -3/Research | Identified Exp. Thermal Shield 5469 | -3/Research | Build established: Mutant 5497 | -3/Research | Identified Integrated Reactor 5497 | -3/Research | Installed Integrated Reactor, increased core energy generation (+10) 5498 | -3/Research | Identified Transdimensional Reconstructor 5498 | -3/Research | Warped through subspace 5583 | -3/Research | Core integrity fell below 50% 5651 | -3/Research | Spotted B-86 Titan 5726 | -3/Research | Spotted B-86 Titan 5735 | -3/Research | Search patrols dispatched 5758 | -3/Research | Entered Quarantine 5771 | -3/Quarantine | Lost 3 parts (1n2u) 5822 | -3/Quarantine | Found Alien Artifact 5823 | -3/Quarantine | Identified Core Reset Matrix 5823 | -3/Quarantine | Used Core Reset Matrix 5827 | -3/Quarantine | Detected hypermatrix surge 5827 | -3/Quarantine | Sensed 15 artifacts in vicinity 5858 | -3/Quarantine | Found Subatomic Replicator 5883 | -3/Quarantine | Found Matter Drive 5892 | -3/Quarantine | Used Subatomic Replicator to replicate Xenon Bombardment Thruster 5903 | -3/Quarantine | Found Terrabomb 5933 | -3/Quarantine | Met incapacitated Sigix Warrior 5933 | -3/Quarantine | Lockdown squad dispatched 5945 | -3/Quarantine | Acquired the access code to the Sigix quarantine chamber 5946 | -3/Quarantine | Unlocked Sigix quarantine chamber 5947 | -3/Quarantine | Found Sigix Containment Pod 5968 | -3/Quarantine | Found Phase Redirector 6008 | -3/Quarantine | Search patrols dispatched 6012 | -3/Quarantine | Found Hpw. Transdimensional Reconstructor 6018 | -3/Quarantine | Found Hpw. Transdimensional Reconstructor 6143 | -3/Quarantine | Warped through subspace 6144 | -3/Quarantine | Core integrity fell below 20% 6151 | -3/Quarantine | Found Hpw. Transdimensional Reconstructor 6153 | -3/Quarantine | Found Transdimensional Reconstructor 6153 | -3/Quarantine | Warped through subspace 6212 | -3/Quarantine | Discovered new exit (range 13) 6215 | -3/Quarantine | Lost 4 parts (2n2u) 6216 | -3/Quarantine | Identified exit to Research 6216 | -3/Quarantine | Entered Research 6216 | -2/Research | Evolved 2 slots: Propulsion x1, Utility x1 6302 | -2/Research | Discovered new exit (range 6) 6304 | -2/Research | Identified exit to Testing 6340 | -2/Research | Found Unknown Device 6340 | -2/Research | Identified Quantum Capacitor 6466 | -2/Research | Search patrols dispatched 6702 | -2/Research | Discovered exit to Testing (range 14) 6726 | -2/Research | Warped through subspace 6726 | -2/Research | Spotted B-90 Cyclops 6748 | -2/Research | Build established: Hacker-Scout 6756 | -2/Research | Search patrols dispatched 6854 | -2/Research | Discovered new exit (range 5) 6856 | -2/Research | Identified exit to Access 6856 | -2/Research | Entered Access 6856 | -1/Access | Evolved 2 slots: Propulsion x1, Weapon x1 7120 | -1/Access | Warped through subspace 7175 | -1/Access | Imp. System Shield fried by hacking feedback 7250 | -1/Access | Crushed by falling debris 7265 | -1/Access | Core integrity fell below 50% 7269 | -1/Access | Emitted hypermatrix ping 7271 | -1/Access | Used Terrabomb 7272 | -1/Access | Core integrity fell below 20% 7273 | -1/Access | Destroyed by H-88 Terminator with Heavy Machine Gun Last Messages --------------- 07267_ Slug penetrates H-88 Terminator. 07269_ Emitted hypermatrix ping. 07269_ Slug penetrates Wall. 07269_ Slug penetrates Door. 07270_ Targeting Computer destroyed. 07270_ Penetrated by Slug. 07271_ Terrabomb activated. 07271_ Slug penetrates G-73 Enforcer. 07271_ Penetrated by Slug. 07271_ Slug penetrates G-73 Enforcer. 07271_ Slug penetrates H-88 Terminator. 07271_ Penetrated by Slug. 07272_ Door malfunctions. 07272_ Wave Collapse Detector explodes. 07272_ Penetrated by Slug. 07272_ Slug penetrates H-88 Terminator. 07272_ Dropped Sigix Containment Pod. 07273_ U-05 Engineer builds a Wall. 07273_ Penetrated by Slug. [Achievement: Tester] Map ----- +----------------------------------------------------+ | ##?#???#???????????????????????# #?????????? | | ######?#????????????############ ! #?????????? | | # "? ????????????# ## ""#?????????? | | # ""? ????????????# ## ""#?????????? | | # """? ????????????# " #" T"#?????????? | | + " ???????#??????# """ # ""#?????????? | | # ?? #??????????# """ ## ""#?????????? | | # ? ????????????# " ##= #?????????? | | # ??????????????# ## #?????????? | | # ??????????????# #######+###????????? | | # ?????#???????###;;+;;###??# #????????? | | ######???#??????????? ; ;;;#### #????????? | | ##???????????????? ; g p #????????? | | ##????##########;;;; ; Y g #????????? | | #??##?# """T""" ; ; hA;;;;;;; #????????? | | ?#???## """ """ ; ;; h;; ; #????????? | | ??###?# ; ; ;;;###????????? | | ???#??# ; ;h ; ???????????? | | ####### " ; ; ??????????? | | #""" ! ; ;h ??????????? | | # """ ; ; ??????????? | | # " ; ; ?????????? | | # ; ; ?????????? | | # ; ; ; ????????? | | # % ; ; ; ????????? | | ## / ; ;h@; ; ;;; ????????? | | ?# #######+;;;;;; ;hh;;;;;;;;;; ;Y;;????????? | | ?# #??? ; ; ; g; ; !!????????? | | # #???? ; ; ;;;g ;;; ;;;;;;;; !?????????? | | # #####;; ;; ; h ; ; # !?????????? | | # ;;;;;;;g ; ; ;;;;;; ??????????? | | # H g ;;;#;;;;;; ??????????? | | # ;; ? ; ??????????? | | # u#;;;;;; ;; ? ;???????????? | | ?########## u ; ; ;; [?"";???????????? | | ?????????# ; ;;;;;;;;; ??????????????? | | ??#???????# ; ; "?????????????? | | ??????????#" # ; ??????????????? | | ??????????#%" #?? ; ????????????????? | | #????????? " #????? ;???????????????????? | | ????????? #??????? ?????????????????????? | | ????????? #?????????????????????????????????? | | #??????? ??????????????????????????????????? | | ???????########??????????????????????????????????? | | ??? ?????????????????????????????????????????????? | | ?????????????????????????????????????????????????? | | #????????????????????????????????????????????????? | | ?????????????????????????????????????????????????? | | ?????????????????????????????????????????????????? | | ?????????????????????????????????????????????????? | +----------------------------------------------------+ Best States ------------- Heat Dissipation 52 Energy Generation 25 Energy Capacity 380 Matter Stores 300 Matter Capacity 300 Sight Range 16 Robot Scan Range 18 Terrain Scan Range 20 Terrain Scan Density 610 Additional Mass Support 6 Corruption Block 8 Armor Coverage 300 Resistance: KI 25 Resistance: TH 30 Core Shielding 30 Propulsion Shielding 66 Utility Shielding 90 Weapon Shielding 66 Evasion (%) 74 Targeting Accuracy 5 Melee Accuracy 14 Recoil Reduction 2 Offensive Hacking 12 Defensive Hacking 36 Item Schematics ----------------- None Robot Schematics ------------------ None Fabricated ------------ K-01 Serf | x4 | -6/Factory | Preloaded Alien Tech Used ----------------- Integrated Reactor Transdimensional Reconstructor Core Reset Matrix Subatomic Replicator Matter Drive Phase Redirector High-powered Transdimensional Reconstructor Terrabomb Achievements -------------- Fist Fight Tester Challenges ------------ None Game ------ Seed SensorControlBeacon Manual? 0 Play Time 04:40:10 Cumulative 129.2 hours Start 2024.12.30 @ 11:29:47 End 2024.12.30 @ 18:51:02 Sessions 1 Manual Loads 0 Difficulty Rogue Special Mode None Game No. 93 Rogue 93 Adventurer 0 Explorer 0 Win Type - Total 2 Types 2/0/0/0/0/0/0/0/0 Lore% 43 Gallery% 51 Achievement% 44 Wizard Run 0 Options --------- Layout 2 ASCII 0 Keyboard 0 Movement Mouse Keybinds 0 Fullscreen 1 Font 48/Smallcaps Map View 50x44 Zoom Use 2% Tactical HUD 1 Map Filters NONE Filters NONE Steam 1 RUN: 375e0604-4620-41e6-8357-bdbf1dd92f39